Cogmind - Beta 14 @@@ ROGUE MODE // 2024.12.10 @ 02:26:06 Player: Shodan Result: Destroyed by Y-45 Defender with Beam Rifle Performance ------------- Evolutions (1) 500 Regions Visited (2) 400 Robots Destroyed (36) 180 Value Destroyed (1049) 1049 Prototype IDs (2) 40 Alien Tech Used (0) 0 Bonus (0) 0 TOTAL SCORE: 2169 Bonus ------- None Cogmind --------- Core Integrity 0/400 Matter 256/300 Energy 257/265 System Corruption 7% Temperature Cool (39) Movement Treading (160) Location -9/Materials Parts ------- > --- POWER (1) -------- Reinforced Ion Engine > --- PROPULSION (3) --- Light Treads Light Treads Light Treads > --- UTILITY (3) ------ Medium Storage Unit Structural Scanner Visual Processing Unit > --- WEAPON (2) ------- Light EM Pulse Cannon Autogun > --- INVENTORY (10) --- Ion Engine Aluminum Leg Aluminum Leg Improved Heat Sink Large Storage Unit High-capacity Matter Pod (200) Beam Rifle Beam Cannon Heavy Assault Rifle Plasma Cutter Peak State ------------ > --- POWER ------------ Reinforced Ion Engine > --- PROPULSION ------- Light Treads Aluminum Leg Aluminum Leg > --- UTILITY ---------- Improved Heat Sink Medium Storage Unit Visual Processing Unit > --- WEAPON ----------- Light EM Pulse Cannon Autogun > --- INVENTORY -------- Ion Engine Large Storage Unit High-capacity Matter Pod Beam Rifle Beam Cannon Heavy Assault Rifle Plasma Cutter [Rating: 16] Favorites ----------- Power Improved Ion Engine Engine Improved Ion Engine Propulsion Aluminum Leg Treads Light Treads Leg Aluminum Leg Utility Medium Storage Unit Device Structural Scanner Storage Medium Storage Unit Processor Visual Processing Unit Weapon Heavy Assault Rifle Energy Gun Small Laser Energy Cannon Beam Cannon Ballistic Gun Heavy Assault Rifle Special Weapon Mining Laser Build | -11 -10 -9 ------- Run | Yrd Mat Mat Slots Evolved 2 | . . 2 Power . | . . . Propulsion 1 | . . 1 Utility 1 | . . 1 Weapon . | . . . Parts Attached 61 | 7 28 26 Power 8 | 1 3 4 Engine 8 | 1 3 4 Core . | . . . Reactor . | . . . Propulsion 19 | 2 9 8 Treads 3 | . . 3 Leg 16 | 2 9 5 Wheel . | . . . Hover . | . . . Flight . | . . . Utility 19 | 1 9 9 Device 11 | . 5 6 Storage 6 | 1 3 2 Processor 2 | . 1 1 Hackware . | . . . Protection . | . . . Artifact . | . . . Weapon 15 | 3 7 5 Energy Gun 1 | 1 . . Energy Cannon 3 | . 1 2 Ballistic Gun 8 | 2 4 2 Ballistic Cannon . | . . . Launcher . | . . . Special Weapon 3 | . 2 1 Impact Weapon . | . . . Slashing Weapon . | . . . Piercing Weapon . | . . . Special Melee Weapon . | . . . Unidentified Prototypes . | . . . Parts Lost 17 | . 4 13 Power 4 | . 1 3 Propulsion 6 | . 1 5 Utility 2 | . . 2 Weapon 5 | . 2 3 Highest Loss Streak 9 | . 4 9 To Critical Strikes . | . . . Average Slot Usage (%) 93 | . 98 87 Engine 11 | . 14 9 Treads 4 | . . 9 Leg 23 | . 27 18 Device 12 | . 11 12 Storage 12 | . 14 11 Processor 2 | . 1 5 Energy Cannon 6 | . . 14 Ballistic Gun 17 | . 26 6 Peak Build Rating 16 | 6 12 16 Average Rating 9 | 4 8 11 On Entrance 5 | . 6 10 Naked Turns . | . . . Heaviest Build 35 | 11 35 28 Greatest Support 60 | 20 20 60 Greatest Overweight (x) 5 | . 1 5 Average Overweight (x) . | . . . Largest Inventory Capacity 15 | 8 15 15 Average Capacity 9 | 7 8 10 Most Carried 10 | 4 10 10 Average Carried 7 | 1 7 8 Final Capacity 10 | 8 10 10 Final Carried 10 | 4 10 10 Class Distribution -------------------- 84% | Mutant 15% | Scavenger-Mutant Dominant Class ---------------- Mutant | -10/Materials Mutant | -9/Materials Resources | -11 -10 -9 ----------- Run | Yrd Mat Mat Matter Collected 1364 | 213 753 398 Remotely . | . . . Salvage Created 1563 | . 614 949 Parts 88 | . 41 47 Haulers Intercepted 2 | . . 2 Recyclers Shooed 1 | . . 1 Parts Field Recycled . | . . . Retrieved Matter . | . . . Parts Self-Destructed . | . . . Prevented . | . . . Kills | -11 -10 -9 ------- Run | Yrd Mat Mat Combat Hostiles Destroyed 27 | . 14 13 Guns 18 | . 14 4 Cannons 9 | . . 9 Classes Destroyed 7 | . 4 3 Hauler 2 | . . 2 Recycler 3 | . 1 2 Watcher 4 | . 1 3 Swarmer 3 | . 3 . Grunt 17 | . 11 6 Brawler 1 | . . 1 Sentry 6 | . . 6 Best Kill Streak 6 | . 3 6 Combat Bots Only 5 | . 3 5 Max Kills in Single Turn 2 | . 1 2 Gunslinging 1 | . . 1 Exploded . | . . . Melee . | . . . Uniques/NPCs Destroyed . | . . . Combat | -11 -10 -9 -------- Run | Yrd Mat Mat Hostile Shots Fired 264 | . 111 153 Missed 73 | . 31 42 Damage Taken 2526 | . 967 1559 Core 612 | . 205 407 Absorbed by Shields 179 | . 39 140 Core Remaining (%) 59 | 100 18 . Volleys Fired 135 | . 77 58 Largest 2 | . 2 2 Hottest 120 | . 120 120 Shots Fired 250 | . 146 104 Gun 179 | . 143 36 Cannon 68 | . . 68 Launcher . | . . . Special 3 | . 3 . Kinetic 179 | . 143 36 Thermal 58 | . 3 55 Explosive . | . . . Electromagnetic 13 | . . 13 Robot Hit Streak 14 | . 14 11 Robot Miss Streak 4 | . 3 4 Penetration Max . | . . . Secondary Targets 3 | . 2 1 Max Gunslinging Chain 1 | . 1 1 Shots Hit Robots 160 | . 92 68 Core Hits 64 | . 34 30 Critical Kills . | . . . Critical Parts Destroyed 1 | . 1 . Critical Strikes 1 | . 1 . Destroy 1 | . 1 . Melee Attacks . | . . . Impact . | . . . Slashing . | . . . Piercing . | . . . Sneak Attacks . | . . . Combat Hostiles . | . . . Follow-up Attacks . | . . . Damage Inflicted 2363 | . 1029 1334 Guns 1357 | . 1016 341 Cannons 957 | . . 957 Explosions 36 | . . 36 Melee . | . . . Ramming 13 | . 13 . Kinetic 1357 | . 1016 341 Thermal 697 | . . 697 Explosive . | . . . Electromagnetic 296 | . . 296 Impact . | . . . Slashing . | . . . Piercing . | . . . Highest Corruption 7 | . . 7 Average Corruption 6 | . . 6 Corruption Purged . | . . . Corruption Blocked . | . . . Effects 10 | . . 10 Message Errors 3 | . . 3 Matter Fused 3 | . . 3 Heat Flow Errors 2 | . . 2 Data Loss (minor) 2 | . . 2 Overload Shots . | . . . Overflow Damage 38 | . . 38 Projectiles 16 | . . 16 Explosions 22 | . . 22 Melee . | . . . Knockbacks . | . . . Impact . | . . . Kinetic . | . . . Secondary . | . . . Self-Inflicted Damage . | . . . Shots . | . . . Rammed . | . . . Targets Rammed 5 | . 5 . Kicked 5 | . 5 . Crushed . | . . . Highest Temperature 478 | . 62 478 Average Temperature 93 | . 17 124 Received Heat Transfer 1177 | . 527 650 Effects 8 | . . 8 Shutdowns 1 | . . 1 Energy Bleed 1 | . . 1 Interference 3 | . . 3 Short Circuit 1 | . . 1 Damage (minor) 2 | . . 2 Siege Activations . | . . . Robots Corrupted . | . . . Combat Hostiles . | . . . Parts Fried 3 | . . 3 Impact Corruptions . | . . . Robots Melted . | . . . Combat Hostiles . | . . . Parts Melted 3 | . . 3 Heat Transferred 1456 | . . 1456 Parts Sabotaged . | . . . Parts Stolen . | . . . Parts Stripped . | . . . Power Chain Reactions 1 | . . 1 Alert | -11 -10 -9 ------- Run | Yrd Mat Mat Peak Influence 328 | . 183 328 Initial 13 | . . 13 Average 107 | . 75 154 Maximum Alert Level 1 | . . 1 Low Security (%) 91 | 100 100 81 Level 1 8 | . . 18 Level 2 . | . . . Level 3 . | . . . Level 4 . | . . . Level 5 . | . . . High Security . | . . . Max Security . | . . . Squads Dispatched 4 | . 2 2 Investigation 2 | . 1 1 Extermination . | . . . Reinforcement 2 | . 1 1 Assault . | . . . Garrison . | . . . Intercept . | . . . Searches Triggered . | . . . Construction Impeded . | . . . Haulers Reinforced . | . . . Active Scanning Responses . | . . . Cargo Convoy Interrupts . | . . . Stealth | -11 -10 -9 --------- Run | Yrd Mat Mat Distress Signals 2 | . 1 1 Communications Jammed . | . . . Distress Signals . | . . . Times Spotted 50 | . 29 21 Peak Tracking Total 9 | . 3 9 Tactical Retreats 2 | . 2 . Traps | -11 -10 -9 ------- Run | Yrd Mat Mat Traps Triggered 2 | . 1 1 Indirectly . | . . . Trap Hack Attempts . | . . . Triggered . | . . . Disarmed . | . . . Reprogrammed . | . . . Reused . | . . . Traps Extracted . | . . . Installed . | . . . Triggered . | . . . Machines | -11 -10 -9 ---------- Run | Yrd Mat Mat Machines Disabled 1 | . . 1 Max in Single Turn 1 | . . 1 Machines Repaired . | . . . Machines Dismantled 1 | . . 1 Machines Sabotaged . | . . . Overloaded Fab Kills . | . . . Hacking | -11 -10 -9 --------- Run | Yrd Mat Mat Machines Accessed 6 | . 3 3 Terminals 5 | . 2 3 Fabricators . | . . . Repair Stations . | . . . Recycling Units 1 | . 1 . Scanalyzers . | . . . Garrison Access . | . . . Total Hacks 22 | . 8 14 Successful 13 | . 6 7 Failed 9 | . 2 7 Catastrophic 1 | . . 1 Database Lockouts . | . . . Manual . | . . . Terminals 19 | . 5 14 Fabricators . | . . . Repair Stations . | . . . Recycling Units 3 | . 3 . Scanalyzers . | . . . Garrison Access . | . . . Terminal Hacks 10 | . 3 7 Record 3 | . 1 2 Robot Analysis 1 | . . 1 Prototype ID Bank 1 | . . 1 Alert Level 1 | . . 1 Unreport Threat 1 | . 1 . Dispatch Records 1 | . . 1 Registered Prototypes 1 | . . 1 Zone Layout 1 | . 1 . Fabricator Hacks . | . . . Repair Station Hacks . | . . . Recycling Unit Hacks 3 | . 3 . Process 1 | . 1 . Report Inventory 2 | . 2 . Scanalyzer . | . . . Garrison Access Hacks . | . . . Unauthorized Hacks . | . . . Terminals . | . . . Fabricators . | . . . Repair Stations . | . . . Recycling Units . | . . . Scanalyzers . | . . . Garrison Access . | . . . Data Cores Recovered . | . . . Used . | . . . Hacking Detections 5 | . 2 3 Full Trace Events . | . . . Feedback Events . | . . . Feedback Blocked . | . . . Robot Schematics Acquired . | . . . Robots Built . | . . . Authchips . | . . . Time . | . . . Total Robot Build Rating . | . . . Part Schematics Acquired . | . . . Parts Built . | . . . Authchips . | . . . Time . | . . . Total Part Build Rating . | . . . Parts Repaired . | . . . Time . | . . . Parts Recycled . | . . . Recycled Matter 136 | . 136 . Retrieved Matter . | . . . Retrieved Components . | . . . Parts Scanalyzed . | . . . Part Schematics Acquired . | . . . Parts Damaged . | . . . Bothacking | -11 -10 -9 ------------ Run | Yrd Mat Mat Used RIF Installer . | . . . Robots Hacked . | . . . Non-combat . | . . . Combat . | . . . Robot Hacks Applied . | . . . Relay Couplers Released . | . . . Fabnet Peak Effective % . | . . . Robots Rewired . | . . . Allies Hacked . | . . . Hacks Repelled . | . . . Allies | -11 -10 -9 -------- Run | Yrd Mat Mat Total Allies . | . . . Largest Group . | . . . Highest-Rated Group . | . . . Highest-Rated Ally . | . . . Total Orders . | . . . Ally Attacks . | . . . Total Damage . | . . . Kills . | . . . Allies Corrupted . | . . . Allies Melted . | . . . Intel | -11 -10 -9 ------- Run | Yrd Mat Mat Robot Analysis Total 1 | . . 1 Derelict Logs Recovered . | . . . Drone Launches . | . . . Drone Recoveries . | . . . Exploration | -11 -10 -9 ------------- Run | Yrd Mat Mat Turns Passed 1571 | 55 823 693 Spaces Moved 706 | 38 370 298 Core 8 | 7 . 1 Treads 101 | . . 101 Legs 597 | 31 370 196 Wheels . | . . . Hover . | . . . Flight . | . . . Fastest Speed 50 | 50 120 120 Average Speed 140 | 107 140 144 Slowest Speed 300 | 120 190 300 Overloaded Moves . | . . . Propulsion Burnouts . | . . . Robots Hopped . | . . . Cave-ins Triggered . | . . . Exploration Rate (%) 29 | 3 54 31 Regions Visited 2 Branch Regions . Pre-discovered Areas . | . . . Known Exits Taken 1 | . 1 . Unknown Exits Taken 1 | 1 . . Scrap Searched . | . . . Spaces Dug 3 | . 3 . Terrain Destroyed 5 | . 3 2 Melee . | . . . Projectile 3 | . 3 . AOE 2 | . . 2 Terrain Rammed . | . . . Walls Destroyed . | . . . Machines Disabled . | . . . Actions | -11 -10 -9 --------- Run | Yrd Mat Mat Total 1033 | 50 535 448 Wait 57 | . 17 40 Move 704 | 37 369 298 Hop . | . . . Pick Up 41 | 5 19 17 Fast Attach 8 | 5 2 1 Attach 22 | 2 5 15 Detach 4 | 1 2 1 Swap 31 | . 21 10 Drop 20 | . 18 2 Fire 135 | . 77 58 Melee . | . . . Ram . | . . . Kick 5 | . 5 . Crush . | . . . Escape Stasis . | . . . Rewire . | . . . Trap . | . . . Miscellaneous 6 | . . 6 Route ------- -11/Scrapyard -10/Materials (discovered 2 exits: *Mat x2) -9/Materials (discovered 1 exit: [*Sto]) History --------- Turn | Location | Event 4 | -11/Scrapyard | Discovered new exit (range 16) 56 | -11/Scrapyard | Entered Materials 265 | -10/Materials | Discovered new exit (range 16) 309 | -10/Materials | Build established: Mutant 531 | -10/Materials | Core integrity fell below 50% 567 | -10/Materials | Lost 4 parts (1p1n2w) 777 | -10/Materials | Discovered new exit (range 15) 788 | -10/Materials | Core integrity fell below 20% 856 | -10/Materials | Derelicts attacked the area 856 | -10/Materials | Identified exit to Materials 879 | -10/Materials | Entered another Materials area 879 | -9/Materials | Evolved 2 slots: Propulsion x1, Utility x1 1012 | -9/Materials | Discovered new exit (range 3) 1210 | -9/Materials | Core integrity fell below 50% 1250 | -9/Materials | Lost 9 parts (2p3n2u2w) 1263 | -9/Materials | Core integrity fell below 20% 1572 | -9/Materials | Destroyed by Y-45 Defender with Beam Rifle Last Messages --------------- variants are responsible for their oversight and maintenance. >>Query(Scanalyzer) Comprehensive suite of scanning and analysis tools for diagnosing faulty prototypes, examining the properties of self-developed [Derelict] components, and reverse engineering technology recovered from the surface battle site. Capable of producing schematics for components scanned, though multiple scans may be required and the deconstruction process may render the component itself useless. Advanced scanalyzers are equipped with a wider array of devices for more quickly and safely analyzing esoteric technologies. 01493_ System corrupted: Matter fused (-5). 01493_ Acquired Structural Scanner. 01508_ R-06 Scavenger collects Lgt. Ion Engine. 01527_ Destroyed Sensor Array. 01533_ Chain reaction triggered in Lgt. Ion Engine. 01533_ Destroyed Hover Unit. 01533_ W-16 Scout destroyed. 01539_ K-01 Serf collects debris. 01549_ EU| MRSJZR|RBRJ0S=WINZ8C|O 01567_ 0 F,V6RQE EEMV HQCYA6:YWQTW ZMWPR4 Map ----- +----------------------------------------------------+ | ????????????????????????????????# # = | | ????????????????????????????????# !! + | | ????????????????????????????????# != # | | ???????????????????????##"??????# # %"####+# | | ???????????????????????## ????? # # " | | ???????????????????????# ######## # | | ????????????????????????##/###+## ## # | | ???????????????????????? ## # ] | | ?????????????????????????? ## # | | ??????????????????????????? ## # | | ????????????????????????????"" ## # | | ???????????????????????????"""" ## # | | ???????????????????????????"""" ## ####### | | ??????????????????????????""""" ## ###### | | ???????????????????? """ ##????? | | ???????????????????? ##????? | | ???????????????????? ##????? | | ????????????????????????############+########????? | | ????????????????????????######### ####????? | | ???????????????????????????????## """""##??????? | | ???????????????????????########## """""##??????? | | ???????????????????????########## """""##??????? | | ???????????????????????## + """""##??????? | | ??????????????? ##?###### ####### """""##??????? | | ??????????????? # [ ##### # =#[ """""##??????? | | ??????????????? + Y @/ # """""????????? | | ??????????????? # ##### # "T" # ##??????? | | ??????????????? ##?######+# ? ###########??????? | | ??????????????????????? ##??########## ??????? | | ??????????????????????????????####???????????????? | | ?????????????????????????????????????????????????? | | ?????????????????????????????????????????????????? | | ?????????????????????????????????????????????????? | | ?????????????????????????????????????????????????? | | ?????????????????????????????????????????????????? | | ?????????????????????????????????????????????????? | | ?????????????????????????????????????????????????? | | ?????????????????????????????????????????????????? | | ?????????????????????????????????????????????????? | | ?????????????????????????????????????????????????? | | ?????????????????????????????????????????????????? | | ?????????????????????????????????????????????????? | | ?????????????????????????????????????????????????? | | ?????????????????????????????????????????????????? | | ?????????????????????????????????????????????????? | | ?????????????????????????????????????????????????? | | ?????????????????????????????????????????????????? | | ?????????????????????????????????????????????????? | | ?????????????????????????????????????????????????? | | ?????????????????????????????????????????????????? | +----------------------------------------------------+ Best States ------------- Heat Dissipation 42 Energy Generation 12 Energy Capacity 265 Matter Stores 483 Matter Capacity 500 Sight Range 18 Terrain Scan Density 10 ECM Strength 1 Evasion (%) 55 Recoil Reduction 3 Item Schematics ----------------- None Robot Schematics ------------------ None Fabricated ------------ Nothing Alien Tech Used ----------------- None Achievements -------------- None Challenges ------------ None Game ------ Seed RagnarokMetafiberMultitool Manual? 0 Play Time 00:45:10 Cumulative 65.2 hours Start 2024.12.10 @ 01:37:47 End 2024.12.10 @ 02:26:06 Sessions 1 Manual Loads 0 Difficulty Rogue Special Mode None Game No. 44 Rogue 44 Adventurer 0 Explorer 0 Win Type - Total 0 Types 0/0/0/0/0/0/0/0/0 Lore% 9 Gallery% 24 Achievement% 25 Wizard Run 0 Options --------- Layout 0 ASCII 0 Keyboard 0 Movement Mouse Keybinds 0 Fullscreen 2 Font 24/Smallcaps Map View 76x50 Zoom Use 0% Tactical HUD 1 Map Filters NONE Filters NONE Steam 1 RUN: 9579012a-7c4c-495b-9152-b5e19d3eefc0